Workbook

Sheet Colleges
B1: Greater St. Louis Two and Four-Year Colleges and Universities, Degrees 2022-23
B2: Four-Year Schools
B3: School Name | C3: IPEDS ID | D3: Address | E3: City | F3: ST | G3: ZIP | H3: Phone | I3: Website | J3: Total Enrollment Fall 2023 | K3: Undergraduate Enrollment 2023 | L3: Doctorate | M3: Master's | N3: Bachelor's | O3: Associate's | P3: Certificates
A4: 1 | B4: Aquinas Institute of Theology | C4: 176600 | D4: 23 S. Spring Ave. | E4: Saint Louis | F4: MO | G4: 63108-3323 | H4: (314) 256-8800 | I4: www.ai.edu | J4: 83 | K4: 0 | L4: 3 | M4: 14 | N4: 0 | O4: 0 | P4: 8
A5: =1+A4 -> 2 | B5: Barnes-Jewish College Goldfarb School of Nursing | C5: 177719 | D5: 4483 Duncan Avenue | E5: Saint Louis | F5: MO | G5: 63110 | H5: (314) 454-7055 | I5: www.barnesjewishcollege.edu | J5: 499 | K5: 426 | L5: 11 | M5: 30 | N5: 342 | O5: 0 | P5: 7
A6: =1+A5 -> 3 | B6: Blackburn College | C6: 143288 | D6: 700 College Ave | E6: Carlinville | F6: IL | G6: 62626 | H6: (217) 854-3231 | I6: www.blackburn.edu | J6: 389 | K6: 389 | L6: 0 | M6: 0 | N6: 69 | O6: 0 | P6: 0
A7: 4 | B7: Chamberlain University | C7: 466921 | D7: 11830 Westline Industrial Dr. Ste. 106 | E7: St. Louis | F7: MO | G7: 63146-0000 | H7: (314) 991-6200 | I7: www.chamberlain.edu | J7: 328 | K7: 328 | L7: 0 | M7: 0 | N7: 94 | O7: 0 | P7: 0
A8: 5 | B8: Concordia Seminary | C8: 177092 | D8: 801 Seminary Place | E8: Saint Louis | F8: MO | G8: 63105-3196 | H8: (314) 505-7000 | I8: www.csl.edu | J8: 600 | K8: 0 | L8: 12 | M8: 50 | N8: 0 | O8: 0 | P8: 38
A9: 6 | B9: Covenant Theological Seminary | C9: 177126 | D9: 12330 Conway Road | E9: Saint Louis | F9: MO | G9: 63141-8697 | H9: (314) 434-4044 | I9: www.covenantseminary.edu | J9: 607 | K9: 0 | L9: 3 | M9: 88 | N9: 0 | O9: 0 | P9: 14
A10: 7 | B10: Eden Theological Seminary | C10: 177278 | D10: 475 E Lockwood Ave | E10: Webster Groves | F10: MO | G10: 63119-3192 | H10: (314) 918-2620 | I10: www.eden.edu | J10: 85 | K10: 0 | L10: 7 | M10: 20 | N10: 0 | O10: 0 | P10: 0
A11: 8 | B11: Fontbonne University | C11: 177418 | D11: 6800 Wydown Blvd | E11: Saint Louis | F11: MO | G11: 63105-3098 | H11: (314) 862-3456 | I11: www.fontbonne.edu | J11: 874 | K11: 650 | L11: 5 | M11: 149 | N11: 137 | O11: 0 | P11: 3
A12: 9 | B12: Greenville University | C12: 145372 | D12: 315 E. College Ave | E12: Greenville | F12: IL | G12: 62246 | H12: (618) 664-2800 | I12: www.greenville.edu | J12: 1053 | K12: 905 | L12: 0 | M12: 65 | N12: 225 | O12: 0 | P12: 0
A13: 10 | B13: Harris-Stowe State University | C13: 177551 | D13: 3026 Laclede Ave | E13: Saint Louis | F13: MO | G13: 63103-2136 | H13: (314) 340-3366 | I13: www.hssu.edu | J13: 1098 | K13: 1098 | L13: 0 | M13: 0 | N13: 244 | O13: 0 | P13: 16
A14: 11 | B14: *Kenrick Glennon Seminary | C14: 177816 | D14: 5200 Glennon Dr | E14: Saint Louis | F14: MO | G14: 63119-4399 | H14: (314) 792-6100 | I14: www.kenrickparish.com | J14: 75 | K14: 0 | L14: 0 | M14: 11 | N14: 0 | O14: 0 | P14: 0
A15: 12 | B15: Lindenwood University | C15: 177968 | D15: 209 S Kingshighway | E15: Saint Charles | F15: MO | G15: 63301-1695 | H15: (636) 949-2000 | I15: www.lindenwood.edu | J15: 7288 | K15: 4933 | L15: 35 | M15: 696 | N15: 1001 | O15: 0 | P15: 58
A16: 13 | B16: Logan University | C16: 177986 | D16: 1851 Schoettler Rd | E16: Chesterfield | F16: MO | G16: 63017-5529 | H16: (636) 227-2100 | I16: www.logan.edu | J16: 1582 | K16: 272 | L16: 242 | M16: 244 | N16: 82 | O16: 0 | P16: 0
A17: 14 | B17: Maryville University of Saint Louis | C17: 178059 | D17: 650 Maryville University Drive | E17: Saint Louis | F17: MO | G17: 63141-7299 | H17: (800) 627-9855 | I17: www.maryville.edu | J17: 9883 | K17: 6062 | L17: 247 | M17: 1234 | N17: 964 | O17: 0 | P17: 319
A18: 15 | B18: McKendree University | C18: 147013 | D18: 701 College Rd | E18: Lebanon | F18: IL | G18: 62254-1291 | H18: (618) 537-4481 | I18: www.mckendree.edu | J18: 2075 | K18: 1605 | L18: 26 | M18: 148 | N18: 321 | O18: 3 | P18: 11
A19: 16 | B19: Missouri Baptist University | C19: 178244 | D19: One College Park Dr | E19: Saint Louis | F19: MO | G19: 63141-8698 | H19: (877) 434-1115 | I19: www.mobap.edu | J19: 5641 | K19: 4889 | L19: 20 | M19: 203 | N19: 382 | O19: 22 | P19: 32
A20: 17 | B20: *Ponce Health Sciences University-St. Louis | D20: 2351 Market St. | E20: Saint Louis | F20: MO | G20: 63103 | H20: (314) 499-6540 | I20: https://stlouis.psm.edu/ | J20: 119 | K20: 0 | L20: 0 | M20: 38 | N20: 0 | O20: 0 | P20: 0
A21: 18 | B21: Principia College | C21: 148016 | D21: 1 Maybeck Place | E21: Elsah | F21: IL | G21: 62028-9799 | H21: (618) 374-2131 | I21: www.principiacollege.edu | J21: 338 | K21: 338 | L21: 0 | M21: 0 | N21: 71 | O21: 0 | P21: 0
A22: 19 | B22: Ranken Technical College | C22: 178891 | D22: 4431 Finney Ave | E22: Saint Louis | F22: MO | G22: 63113-2811 | H22: (314) 371-0236 | I22: www.ranken.edu | J22: 1696 | K22: 1696 | L22: 0 | M22: 0 | N22: 14 | O22: 439 | P22: 508
A23: 20 | B23: *Central Christian College of the Bible | C23: 179256 | D23: 11960 Westline Industrial Dr, Ste. 230 | E23: St. Louis | F23: MO | G23: 63146 | H23: 314-710-2987 | I23: https://cccb.edu/ | J23: 183 | K23: 155 | L23: 0 | M23: 15 | N23: 33 | O23: 3 | P23: 2
A24: 21 | B24: Saint Louis University | C24: 179159 | D24: One Grand Blvd | E24: Saint Louis | F24: MO | G24: 63103-2097 | H24: (314) 977-2222 | I24: www.slu.edu | J24: 17202 | K24: 10519 | L24: 634 | M24: 1011 | N24: 1765 | O24: 0 | P24: 214
A25: 22 | B25: Southern Illinois University-Edwardsville | C25: 149231 | D25: Il State Rte 157 | E25: Edwardsville | F25: IL | G25: 62026-1001 | H25: (618) 650-2000 | I25: www.siue.edu | J25: 12045 | K25: 8975 | L25: 221 | M25: 872 | N25: 2151 | O25: 0 | P25: 72
A26: 23 | B26: St. Louis College of Health Careers-Fenton | C26: 442426 | D26: 1297 North Highway Drive | E26: Fenton | F26: MO | G26: 63026 | H26: (314) 652-0300 | I26: www.slchc.com | J26: 430 | K26: 401 | L26: 0 | M26: 6 | N26: 38 | O26: 148 | P26: 53
A27: 24 | B27: University of Health Sciences and Pharmacy in St. Louis | C27: 179265 | D27: 4588 Parkview Pl | E27: Saint Louis | F27: MO | G27: 63110-1088 | H27: (314) 367-8700 | I27: www.uhsp.edu/ | J27: 631 | K27: 275 | L27: 137 | M27: 0 | N27: 70 | O27: 0 | P27: 1
A28: 25 | B28: Stevens - The Institute of Business & Arts | C28: 178767 | D28: 1521 Washington Avenue | E28: Saint Louis | F28: MO | G28: 63103 | H28: (314) 421-0949 x1101 | I28: www.siba.edu | J28: 95 | K28: 95 | L28: 0 | M28: 0 | N28: 16 | O28: 21 | P28: 0
A29: 26 | B29: University of Missouri-St Louis | C29: 178420 | D29: One University Boulevard | E29: Saint Louis | F29: MO | G29: 63121-4400 | H29: (314) 516-5000 | I29: www.umsl.edu/ | J29: 14800 | K29: 12137 | L29: 210 | M29: 678 | N29: 1493 | O29: 0 | P29: 278
A30: 27 | B30: *Urshan University | C30: 455099 | D30: 155 Urshan Way | E30: Wentzville | F30: MO | G30: 63385 | H30: (314) 838-8858 | I30: https://urshan.edu/ | J30: 514 | K30: 514 | L30: 0 | M30: 0 | N30: 66 | O30: 9 | P30: 2
A31: 28 | B31: Urshan Graduate School of Theology | C31: 494685 | D31: 155 Urshan Way | E31: Wentzville | F31: MO | G31: 63385 | H31: (314) 838-8858 | I31: https://urshan.edu/ugst | J31: 120 | K31: 0 | L31: 0 | M31: 8 | N31: 0 | O31: 0 | P31: 0
A32: 29 | B32: Washington University in St Louis | C32: 179867 | D32: One Brookings Drive | E32: Saint Louis | F32: MO | G32: 63130-4899 | H32: (314) 935-5000 | I32: www.wustl.edu | J32: 16500 | K32: 8267 | L32: 808 | M32: 2861 | N32: 1868 | O32: 13 | P32: 376
A33: 30 | B33: Webster University | C33: 179894 | D33: 470 E Lockwood Ave. | E33: Saint Louis | F33: MO | G33: 63119-3194 | H33: (314) 961-2660 | I33: www.webster.edu | J33: 7606 | K33: 2204 | L33: 27 | M33: 1752 | N33: 554 | O33: 0 | P33: 245
B34: Totals | J34: =SUM(J4:J33) -> 104439 | K34: =SUM(K4:K33) -> 67133 | L34: 2648 | M34: 10193 | N34: 12000 | O34: 658 | P34: 2257
B36: Two-Year Schools
B37: School Name | C37: IPEDS ID | D37: Address | E37: City | F37: ST | G37: ZIP | H37: Phone | I37: Website | J37: Total Enrollment Fall 2023 | K37: Undergraduate Enrollment 2022 | L37: Doctorate | M37: Master's | N37: Bachelor's | O37: Associate's | P37: Certificates
A38: 1 | B38: *American Trade School | C38: 461573 | D38: 3925 Industrial Drive | E38: Saint Ann | F38: MO | G38: 63074 | H38: (314) 423-1900 | I38: https://www.americantradeschool.edu/ | J38: 140 | K38: 140 | L38: 0 | M38: 0 | N38: 0 | O38: 0 | P38: 74
A39: =1+A38 -> 2 | B39: East Central College | C39: 177250 | D39: 1964 Prairie Dell Rd | E39: Union | F39: MO | G39: 63084 | H39: (636) 583-5193 | I39: www.eastcentral.edu | J39: 2638 | K39: 2638 | L39: 0 | M39: 0 | N39: 0 | O39: 488 | P39: 186
A40: =1+A39 -> 3 | B40: Jefferson College | C40: 177676 | D40: 1000 Viking Drive | E40: Hillsboro | F40: MO | G40: 63050-2440 | H40: (636) 797-3000 | I40: www.jeffco.edu | J40: 3769 | K40: 3769 | L40: 0 | M40: 0 | N40: 0 | O40: 587 | P40: 209
A41: 4 | B41: Kaskaskia College | C41: 146366 | D41: 27210 College Rd | E41: Centralia | F41: IL | G41: 62801 | H41: (618) 545-3000 | I41: www.kaskaskia.edu | J41: 3447 | K41: 3447 | L41: 0 | M41: 0 | N41: 0 | O41: 420 | P41: 1121
A42: 5 | B42: Lewis and Clark Community College | C42: 146603 | D42: 5800 Godfrey Rd | E42: Godfrey | F42: IL | G42: 62035 | H42: (618) 468-7000 | I42: www.lc.edu | J42: 4196 | K42: 4196 | L42: 0 | M42: 0 | N42: 0 | O42: 575 | P42: 1251
A43: 6 | B43: Midwest Institute | C43: 178183 | D43: 964 South Highway Drive | E43: Fenton | F43: MO | G43: 63026 | H43: (314) 965-8363 | I43: midwestinstitute.com | J43: 151 | K43: 151 | L43: 0 | M43: 0 | N43: 0 | O43: 49 | P43: 80
A44: 7 | B44: Southwestern Illinois College | C44: 143215 | D44: 2500 Carlyle Ave | E44: Belleville | F44: IL | G44: 62221-5899 | H44: (618) 235-2700 | I44: www.swic.edu | J44: 7955 | K44: 7955 | L44: 0 | M44: 0 | N44: 0 | O44: 969 | P44: 2836
A45: 8 | B45: St Charles Community College | C45: 262031 | D45: 4601 Mid Rivers Mall Dr | E45: Cottleville | F45: MO | G45: 63376-0975 | H45: (636) 922-8000 | I45: www.stchas.edu | J45: 5902 | K45: 5902 | L45: 0 | M45: 0 | N45: 0 | O45: 901 | P45: 205
A46: 9 | B46: St Louis CC - All Campuses | C46: 179308 | D46: 300 South Broadway | E46: Saint Louis | F46: MO | G46: 63102-2810 | H46: (314) 539-5000 | I46: www.stlcc.edu | J46: 14627 | K46: 14627 | L46: 0 | M46: 0 | N46: 0 | O46: 1899 | P46: 432
A47: 10 | B47: St Louis College of Health Careers-St Louis | C47: 179511 | D47: 909 South Taylor Avenue | E47: Saint Louis | F47: MO | G47: 63110 | H47: (636) 529-0000 | I47: www.slchc.com | J47: 108 | K47: 108 | L47: 0 | M47: 0 | N47: 0 | O47: 0 | P47: 70
B48: Totals 2-Year Colleges | J48: =SUM(J38:J47) -> 42933 | K48: =SUM(K38:K47) -> 42933 | O48: =SUM(O38:O47) -> 5888 | P48: =SUM(P38:P47) -> 6464
B49: TOTALS 4-Year & 2-Year Colleges | J49: =J48+J34 -> 147372 | K49: =K48+K34 -> 110066 | L49: =L34 -> 2648 | M49: =M34 -> 10193 | N49: =N34 -> 12000 | O49: =O34+O48 -> 6546 | P49: =P34+P48 -> 8721
B50: TOTALS 4-Year & 2-Year Colleges | D50: Associates Degrees & Higher | L50: =SUM(L49:O49) -> 31387
B51: TOTALS 4-Year & 2-Year Colleges | D51: Bachelor's Degrees & Higher | L51: =SUM(L49:N49) -> 24841
B52: Source: IPEDS National Center for Education Statistics, https://nces.ed.gov/ipeds/, and *"College Navigator" http://nces.ed.gov/collegenavigator/, Accessed 6/3/25.
